bitfinex-derivatives/quotes_BNBF0:USTF0_20250130
["timestamp","ask_amount","ask_price","bid_price","bid_amount"]
[1738279374794,0.27028321,680.35,679.05,1.34996497]
[1738279374994,0.27028321,680.35,679.06,1.34996063]
[1738279375192,0.27028321,680.35,679.07,1.35000705]
[1738279375389,0.27028321,680.35,679.08,1.35000272]
[1738279375595,0.27028321,680.35,679.09,1.34999838]
[1738279375796,0.27028321,680.35,679.1,1.05548661]
[1738279375996,0.27028321,680.35,679.11,1.05548661]
[1738279376196,0.27028321,680.35,679.12,1.05548661]
[1738279376396,0.27028321,680.35,679.13,1.05548661]
[1738279376595,0.27028321,680.35,679.14,1.05548661]
[1738279376797,0.27028321,680.35,679.15,1.05548661]
[1738279377097,0.27028321,680.35,679.16,1.05548661]
[1738279377299,1.09669963,680.31,679.17,1.05548661]
[1738279377493,0.27028321,680.3,679.18,1.05548661]
[1738279377696,0.27028321,680.3,679.19,1.05548661]
[1738279377897,0.27028321,680.3,679.2,1.05548661]
[1738279378097,0.27028321,680.3,679.21,1.05548661]
[1738279378294,0.27028321,680.3,679.22,1.05548661]
[1738279378498,0.27028321,680.3,679.23,1.05548661]
[1738279378699,0.27028321,680.3,679.24,1.05548661]
[1738279378898,0.27028321,680.3,679.25,1.05548661]
[1738279379100,0.27028321,680.3,679.26,1.05557134]
[1738279379399,0.27028321,680.3,679.27,1.05557134]
[1738279379599,0.27028321,680.3,679.2,1.232]
[1738279379899,0.27028321,680.3,679.28,0.79840966]
[1738279380300,0.27028321,680.3,679.29,0.79840966]
[1738279380500,0.27028321,680.3,679.3,0.79840184]
[1738279380803,1.09669963,680.28,679.3,0.79840184]
[1738279380997,1.09669963,680.28,679.31,0.79840184]
[1738279380998,0.27028321,680.27,679.31,0.79840184]
[1738279381198,0.27028321,680.27,679.32,0.79840184]
[1738279381398,0.27028321,680.27,679.33,0.79840184]
[1738279381597,0.27028321,680.27,679.34,0.79840184]
[1738279381902,0.27028321,680.27,679.2,1.232]
[1738279381903,0.27028321,680.27,679.35,0.79840184]
[1738279382202,0.27028321,680.27,679.36,0.79840184]
[1738279382405,0.27028321,680.27,679.37,0.79840184]
[1738279382599,0.27028321,680.27,679.2,1.232]
[1738279382600,0.27028321,680.27,679.38,0.79840184]
[1738279382902,0.27028321,680.27,679.39,0.79840184]
[1738279383202,0.27028321,680.27,679.4,0.79840184]
[1738279383403,0.27028321,680.27,679.41,0.79840184]
[1738279383603,0.27028321,680.27,679.42,0.79840184]
[1738279383904,0.27028321,680.27,679.43,0.79840184]
[1738279384101,0.27028321,680.27,679.2,1.232]
[1738279384305,1.09669963,680.21,679.22,1.10092913]
[1738279384499,0.27028321,680.2,679.23,1.05586386]
[1738279384699,0.27028321,680.2,679.24,1.05586386]
[1738279384900,0.27028321,680.2,679.25,1.05586386]
[1738279385101,0.27028321,680.2,679.26,1.05586386]
[1738279385301,0.27028321,680.2,679.27,1.05597801]
[1738279385505,0.27028321,680.2,679.28,1.05597801]
[1738279385702,0.27028321,680.2,679.29,0.79879614]
[1738279385907,0.27028321,680.2,679.3,0.79879614]
[1738279386109,0.27028321,680.2,679.31,0.79879614]
[1738279386301,0.27028321,680.2,679.32,0.79897185]
[1738279386500,0.27028321,680.2,679.22,1.10092913]
[1738279386501,0.27028321,680.2,679.33,0.79897185]
[1738279386803,0.27028321,680.2,679.34,0.79897185]
[1738279387008,0.27028321,680.2,679.35,0.79897185]
[1738279387208,0.27028321,680.2,679.36,0.79897185]
[1738279387410,0.27030151,680.19,679.37,0.79897185]
[1738279387704,0.27030151,680.19,679.2,1.232]
[1738279387705,0.27030151,680.18,679.38,0.79897185]
[1738279387903,0.27030151,680.18,679.39,0.79897185]
[1738279388105,0.27030151,680.18,679.4,0.79897185]
[1738279388304,0.27030151,680.18,679.23,1.10092913]
[1738279388305,1.09669963,680.19,679.41,0.79897185]
[1738279388609,1.09669963,680.19,679.42,0.79919059]
[1738279388809,0.27031576,680.18,679.43,0.79919059]
[1738279389007,1.09669963,680.19,679.44,0.79919059]
[1738279389202,1.09669963,680.19,679.45,0.79919059]
[1738279389401,1.09669963,680.19,679.46,0.79919059]
[1738279389609,0.2703157,680.18,679.47,0.79919059]
[1738279389806,0.2703157,680.18,679.48,0.79919059]
[1738279390005,1.09669963,680.16,679.49,0.79919059]
[1738279390205,1.09669963,680.16,679.5,0.79919059]
[1738279390402,1.09669963,680.16,679.51,0.79919059]
[1738279390602,1.09669963,680.16,679.52,0.79919059]
[1738279390806,1.09669963,680.16,679.53,0.79919059]
[1738279391108,1.09669963,680.16,679.54,0.79919059]
[1738279391302,1.09669963,680.16,679.2,1.232]
[1738279391303,1.09669963,680.16,679.55,0.79919059]
[1738279391507,1.09669963,680.16,679.56,0.79919059]
[1738279391708,1.09669963,680.16,679.57,0.79919059]
[1738279392003,1.09669963,680.16,679.58,0.79919059]
[1738279392207,1.09669963,680.16,679.59,0.79919059]
[1738279392408,1.09669963,680.16,679.2,1.232]
[1738279392409,1.09669963,680.16,679.6,0.79919059]
[1738279392611,1.09669963,680.17,679.2,1.232]
[1738279392809,1.09669963,680.17,679.21,0.79945638]
[1738279393109,1.09669963,680.17,679.2,1.232]
[1738279393310,1.09669963,680.17,679.21,0.79951738]
[1738279393503,1.09669963,680.17,679.22,0.79951738]
[1738279393707,1.09669963,680.17,679.23,0.79951738]
[1738279393907,1.09669963,680.17,679.24,0.79951738]
[1738279394109,1.09669963,680.17,679.25,0.79951738]
[1738279394310,1.09669963,680.17,679.26,0.79951738]
[1738279394504,1.09669963,680.17,679.27,0.79951738]
[1738279394706,1.09669963,680.17,679.28,0.79951738]
[1738279395006,1.09669963,680.17,679.29,0.79953797]
[1738279395204,1.09669963,680.17,679.3,0.79953797]
[1738279395406,1.09669963,680.17,679.31,0.79953797]
[1738279395606,1.09669963,680.17,679.32,0.79953797]
[1738279395809,1.09669963,680.16,679.33,0.79953797]
[1738279396110,1.09669963,680.16,679.34,0.79972824]
[1738279396304,1.09669963,680.16,679.35,0.79972824]
[1738279396508,1.09669963,680.16,679.36,0.79972824]
[1738279396710,1.09669963,680.16,679.37,0.79972824]
[1738279397010,1.09669963,680.16,679.38,0.79972824]
[1738279397211,1.09669963,680.16,679.39,0.79972824]
[1738279397412,1.09669963,680.16,679.4,0.79972824]
[1738279397612,0.27031831,680.15,679.41,0.79972824]
[1738279397811,0.27031831,680.15,679.42,0.79972824]
[1738279398012,1.09669963,680.16,679.43,0.79972824]
[1738279398206,1.09669963,680.16,679.44,0.79972824]
[1738279398408,1.09669963,680.16,679.2,1.232]
[1738279398409,1.09669963,680.16,679.45,0.79972824]
[1738279398607,1.09669963,680.16,679.46,0.79972824]
[1738279398808,1.09669963,680.16,679.47,0.79972824]
[1738279399010,1.09669963,680.16,679.2,1.232]
[1738279399011,1.09669963,680.16,679.48,0.79972824]
[1738279399210,1.09669963,680.16,679.49,0.80003513]
[1738279399407,1.09669963,680.16,679.5,0.80003513]
[1738279399606,1.09669963,680.16,679.51,0.80003513]
[1738279399810,1.09669963,680.16,679.52,0.80003513]
[1738279400110,1.09669963,680.16,679.53,0.80003513]
[1738279400308,1.09669963,680.16,679.54,0.80003513]
[1738279400506,1.09669963,680.16,679.55,0.80003513]
[1738279400710,1.09669963,680.16,679.56,0.80003513]
[1738279400904,1.09669963,680.16,679.57,0.80003513]
[1738279401108,1.09669963,680.16,679.58,0.80003513]
[1738279401313,1.09669963,680.16,679.59,0.80003513]
[1738279401512,1.09669963,680.16,679.6,0.80003513]
[1738279401712,1.09669963,680.18,679.61,0.80003513]
[1738279401906,0.27032851,680.17,679.62,0.80003513]
[1738279402109,0.27032851,680.17,679.63,0.80003513]
[1738279402306,0.27032851,680.17,679.64,0.80003513]
[1738279402506,0.27032851,680.17,679.65,0.80003513]
[1738279402812,1.09669963,680.18,679.66,0.80003513]
[1738279403012,1.09669963,680.18,679.67,0.80003513]
[1738279403211,1.09669963,680.18,679.68,0.80003513]
[1738279403413,1.09669963,680.18,679.69,0.80044004]
[1738279403713,1.09669963,680.18,679.7,0.80044004]
[1738279404012,1.09669963,680.18,679.71,0.80044004]
[1738279404213,1.09669963,680.18,679.72,0.80044004]
[1738279404406,1.09669963,680.18,679.73,0.80044004]
[1738279404610,1.09669963,680.18,679.74,0.80044004]
[1738279404812,1.09669963,680.19,679.75,0.80044004]
[1738279405114,1.09669963,680.19,679.76,0.80044004]
[1738279405415,1.09669963,680.19,679.2,1.232]
[1738279405416,1.09669963,680.19,679.77,0.80044004]
[1738279405617,1.09669963,680.19,679.78,0.80044004]
[1738279405817,1.09669963,680.19,679.79,0.80044004]
[1738279406116,1.09669963,680.19,679.8,0.80044004]
[1738279406316,1.09669963,680.19,679.81,0.80044004]
[1738279406612,1.09669963,680.19,679.82,0.80044004]
[1738279406817,1.09669963,680.19,679.83,0.80044004]
[1738279407013,1.09669963,680.19,679.84,0.80044004]
[1738279407211,1.09669963,680.19,679.8,0.813]
[1738279407411,1.09669963,680.19,679.81,0.80063925]
[1738279407618,1.09669963,680.19,679.82,0.80063925]
[1738279407816,0.27032621,680.18,679.83,0.80063925]
[1738279408017,0.27032621,680.18,679.84,0.80063925]
[1738279408319,0.27032621,680.17,679.85,0.80063925]
[1738279408513,1.09669963,680.21,679.8,0.813]
[1738279408713,0.27032564,680.2,679.81,0.80059922]
[1738279408914,0.27032564,680.2,679.82,0.80058026]
[1738279409115,0.27032564,680.2,679.83,0.80058026]
[1738279409315,0.27032564,680.2,679.84,0.80058026]
[1738279409517,0.27032564,680.2,679.85,0.80058026]
[1738279409718,0.27032564,680.2,679.86,0.80060927]
[1738279409913,0.27032564,680.2,679.8,0.813]
[1738279410113,0.27032564,680.2,679.81,0.80060796]
[1738279410316,0.27032564,680.2,679.82,0.80060796]
[1738279410514,0.27032564,680.2,679.83,0.80060796]
[1738279410717,0.27032564,680.2,679.84,0.80060796]
[1738279411013,0.27032564,680.2,679.85,0.80060796]
[1738279411212,0.27032564,680.2,679.86,0.80060796]
[1738279411417,0.27032564,680.2,679.8,0.813]
[1738279411713,0.27032564,680.2,679.81,0.80073819]
[1738279411912,1.09669963,680.13,679.82,0.80073819]
[1738279412116,1.09669963,680.13,679.8,0.813]
[1738279412117,0.27032564,680.12,679.83,0.80073819]
[1738279412316,0.27032564,680.12,679.84,0.80073819]
[1738279412520,0.27032564,680.12,679.85,0.80073819]
[1738279412821,0.27032564,680.12,679.8,0.813]
[1738279412822,0.27032564,680.12,679.86,0.80073819]
[1738279413022,0.27032564,680.12,679.8,0.813]
[1738279413216,0.27032564,680.12,679.81,0.80081543]
[1738279413419,0.27032564,680.12,679.82,0.80081543]
[1738279413722,0.27032564,680.12,679.83,0.80081543]
[1738279413920,0.27032564,680.12,679.8,0.813]
[1738279413921,0.27032564,680.12,679.84,0.80081543]
[1738279414121,0.27032564,680.12,679.85,0.80081543]
[1738279414321,0.27032564,680.12,679.86,0.80081543]
[1738279414621,0.27032564,680.12,679.87,0.80081543]
[1738279414823,0.27032564,680.12,679.88,0.80081543]
[1738279415027,0.27032564,680.12,679.8,0.813]
[1738279415226,0.27032564,680.12,679.81,0.80072]
[1738279415426,0.27032564,680.12,679.82,0.80072]
[1738279415427,1.09669963,680.09,679.82,0.80072]
[1738279415626,0.27032564,680.08,679.83,0.80072]
[1738279415829,0.27032564,680.08,679.84,0.80072]
[1738279416125,0.27032564,680.08,679.85,0.80078069]
[1738279416325,0.27032564,680.08,679.86,0.80078069]
[1738279416526,0.27032564,680.08,679.87,0.80078069]
[1738279416732,0.27032564,680.08,679.8,0.813]
[1738279416928,0.27032564,680.08,679.81,0.80075097]
[1738279417121,0.27032564,680.08,679.82,0.80075097]
[1738279417321,0.27032564,680.08,679.83,0.80075097]
[1738279417525,0.27032564,680.08,679.84,0.80075097]
[1738279417722,0.27032564,680.08,679.85,0.80075097]
[1738279418024,0.27032564,680.08,679.86,0.80075097]
[1738279418224,1.09669963,680.07,679.8,0.813]
[1738279418428,1.09669963,680.07,679.81,0.80076992]
[1738279418726,1.09669963,680.07,679.82,0.80078417]
[1738279418927,1.09669963,680.07,679.83,0.80078417]
[1738279419125,1.09669963,680.07,679.84,0.80078417]
[1738279419325,1.09669963,680.07,679.85,0.80078417]
[1738279419522,1.09669963,680.07,679.86,0.80078417]
[1738279419724,1.09669963,680.07,679.87,0.80078417]
[1738279419923,1.09669963,680.07,679.8,0.813]
[1738279419924,1.09669963,680.07,679.88,0.80078417]
[1738279420127,1.09669963,680.07,679.89,0.80078417]
[1738279420324,1.09669963,680.07,679.8,0.813]
[1738279420528,1.09669963,680.07,679.81,0.80062208]
[1738279420726,1.09669963,680.07,679.82,0.80062208]
[1738279420931,1.09669963,680.07,679.83,0.80062208]
[1738279421131,1.09669963,680.07,679.84,0.80062208]
[1738279421327,1.09669963,680.07,679.85,0.80062208]
[1738279421526,1.09669963,680.07,679.86,0.80062208]
[1738279421832,1.09669963,680.07,679.87,0.80062208]
[1738279422032,1.09669963,680.07,679.88,0.80062208]
[1738279422332,1.09669963,680.07,679.89,0.80062208]
[1738279422534,1.09669963,680.18,679.8,0.813]
[1738279422833,1.09669963,680.18,679.81,0.80063657]
[1738279423028,1.09669963,680.18,679.82,0.80063657]
[1738279423332,1.09669963,680.18,679.83,0.80063657]
[1738279423528,1.09669963,680.18,679.84,0.80063657]
[1738279423731,1.09669963,680.18,679.85,0.80063657]
[1738279423932,1.09669963,680.18,679.8,0.813]
[1738279423933,1.09669963,680.18,679.86,0.80063657]
[1738279424132,1.09669963,680.18,679.87,0.80063657]
[1738279424431,1.09669963,680.18,679.88,0.80063657]
[1738279424734,1.09669963,680.18,679.89,0.80063657]
[1738279424933,1.09669963,680.18,679.9,0.80063657]
[1738279425126,1.09669963,680.18,679.8,0.813]
[1738279425333,1.09669963,680.18,679.81,0.80058048]
[1738279425532,1.09669963,680.18,679.82,0.80058048]
[1738279425735,1.09669963,680.18,679.83,0.80058048]
[1738279425933,1.09669963,680.18,679.8,0.813]
[1738279425934,1.09669963,680.18,679.84,0.80058048]
[1738279426236,1.09669963,680.18,679.85,0.80058048]
[1738279426435,1.09669963,680.18,679.86,0.80058048]
[1738279426636,1.09669963,680.18,679.87,0.80058048]
[1738279426835,1.09669963,680.18,679.88,0.80058048]
[1738279427036,1.09669963,680.18,679.89,0.80058048]
[1738279427336,1.09669963,680.18,679.9,0.80065382]
[1738279427638,1.09669963,680.18,679.8,0.813]
[1738279427835,1.09669963,680.18,679.81,0.80065933]
[1738279428036,1.09669963,680.18,679.82,0.80065933]
[1738279428229,1.09669963,680.18,679.83,0.80065933]
[1738279428430,1.09669963,680.18,679.84,0.80065933]
[1738279428629,1.09669963,680.18,679.85,0.80065933]
[1738279428834,1.09669963,680.18,679.86,0.80065933]
[1738279429050,1.09669963,680.18,679.87,0.80065933]
[1738279429237,0.27030929,680.17,679.88,0.80065933]
[1738279429438,1.09669963,680.18,679.89,0.80065933]
[1738279429641,0.27030804,680.17,679.9,0.80065933]
[1738279429938,1.09669963,680.19,679.14,1.181]
[1738279430138,0.27030684,680.18,679.15,1.05804081]
[1738279430338,0.27030684,680.18,679.16,1.05804081]
[1738279430532,0.27030684,680.18,679.17,1.05804081]
[1738279430739,0.27030684,680.18,679.18,0.80077489]
[1738279430937,0.27030684,680.18,679.19,0.80077489]
[1738279431138,0.27030684,680.18,679.2,0.80077489]
[1738279431338,0.27030684,680.18,679.21,0.80077489]
[1738279431540,0.27030684,680.18,679.22,0.80077489]
[1738279431743,0.27030684,680.18,679.23,0.80077489]
[1738279432041,0.27030684,680.18,679.24,0.80077489]
[1738279432239,0.27030684,680.18,679.25,0.80077489]
[1738279432441,0.27030684,680.18,679.26,0.80077489]
[1738279432641,0.27030684,680.18,679.27,0.80077489]
[1738279432845,1.09669963,680.11,679.28,0.80077489]
[1738279433044,1.09669963,680.11,679.29,0.80077489]
[1738279433338,1.09669963,680.11,679.3,0.80077489]
[1738279433542,1.09669963,680.11,679.31,0.80077489]
[1738279433736,1.09669963,680.11,679.32,0.80077489]
[1738279433941,1.09669963,680.11,679.33,0.80077489]
[1738279434142,1.09669963,680.11,679.34,0.80077489]
[1738279434342,1.09669963,680.11,679.35,0.80077489]
[1738279434542,1.09669963,680.11,679.36,0.80077489]
[1738279434742,1.09669963,680.11,679.37,0.80077489]
[1738279434939,1.09669963,680.11,679.38,0.80077489]
[1738279435144,1.09669963,680.11,679.39,0.80077489]
[1738279435344,1.09669963,680.11,679.4,0.80077489]
[1738279435644,0.29395769,680.37,679.16,1.53561027]
[1738279435645,1.09669963,680.09,679.41,0.80077489]
[1738279435845,1.09669963,680.09,679.42,0.80104045]
[1738279436046,1.09669963,680.09,679.43,0.80104045]
[1738279436346,1.09669963,680.09,679.44,0.80104045]
[1738279436644,1.09669963,680.09,679.45,0.80104045]
[1738279436843,1.09669963,680.09,679.46,0.80104045]
[1738279437039,1.09669963,680.09,679.47,0.80104045]
[1738279437243,1.09669963,680.09,679.48,0.80104045]
[1738279437443,0.27031779,680.08,679.49,0.80104045]
[1738279437645,0.27031779,680.08,679.5,0.80104045]
[1738279437840,0.27031779,680.08,679.18,1.10092913]
[1738279437841,0.27031779,680.08,679.51,0.80104045]
[1738279438046,0.27031779,680.08,679.52,0.80104045]
[1738279438347,1.09669963,680.09,679.53,0.80104045]
[1738279438646,1.09669963,680.09,679.54,0.80104045]
[1738279438848,1.09669963,680.07,679.55,0.80104045]
[1738279439146,1.09669963,680.07,679.56,0.80104045]
[1738279439346,1.09669963,680.07,679.57,0.80104045]
[1738279439548,1.09669963,680.07,679.58,0.80104045]
[1738279439748,1.09669963,680.07,679.59,0.80104045]
[1738279439949,1.09669963,680.07,679.6,0.80104045]
[1738279440145,1.09669963,680.07,679.61,0.80104045]
[1738279440351,1.09669963,680.07,679.62,0.80104045]
[1738279440652,1.09669963,680.07,679.63,0.80104045]
[1738279440851,1.09669963,680.07,679.64,0.80104045]
[1738279441050,1.09669963,680.07,679.65,0.80104045]
[1738279441250,1.09669963,680.07,679.66,0.80104045]
[1738279441450,1.09669963,680.07,679.21,1.10092913]
[1738279442750,1.09669963,680.07,679.22,0.80145706]
[1738279442952,1.09669963,680.07,679.23,0.80145706]
[1738279443152,1.09669963,680.07,679.24,0.80145706]
[1738279443353,1.09669963,680.14,679.25,0.80145706]
[1738279443654,1.09669963,680.14,679.26,0.80145706]
[1738279443851,1.09669963,680.14,679.27,0.80145706]
[1738279444051,1.09669963,680.14,679.28,0.80145706]
[1738279444247,1.09669963,680.14,679.29,0.80145706]
[1738279444453,1.09669963,680.14,679.14,1.181]
[1738279444454,1.09669963,680.14,679.3,0.80145706]
[1738279444649,1.09669963,680.14,679.31,0.80145706]
[1738279444852,1.09669963,680.14,679.32,0.80166695]
[1738279445153,1.09669963,680.14,679.33,0.80166695]
[1738279445349,1.09669963,680.14,679.34,0.80177963]
[1738279445554,1.09669963,680.14,679.35,0.80177963]
[1738279445855,1.09669963,680.14,679.36,0.80177963]
[1738279446051,1.09669963,680.14,679.37,0.80177963]
[1738279446352,1.09669963,680.14,679.38,0.80177963]
[1738279446555,1.09669963,680.14,679.39,0.80177963]
[1738279446853,1.09669963,680.12,679.4,0.80177963]
[1738279447053,1.09669963,680.12,679.41,0.80177963]
[1738279447253,1.09669963,680.12,679.42,0.80177963]
[1738279447552,1.09669963,680.12,679.43,0.80177963]
[1738279447753,1.09669963,680.12,679.44,0.80177963]
[1738279447949,1.09669963,680.12,679.45,0.80177963]
[1738279448154,0.2703237,680.11,679.46,0.80177963]
[1738279448356,0.2703237,680.11,679.47,0.80177963]
[1738279448555,0.2703237,680.11,679.48,0.80177963]
[1738279448756,0.2703237,680.11,679.49,0.80177963]
[1738279448956,1.09669963,680.12,679.5,0.80177963]
[1738279449156,0.27032278,680.11,679.51,0.80180073]
[1738279449353,0.27032278,680.11,679.52,0.80180073]
[1738279449550,0.27032278,680.11,679.53,0.80180073]
[1738279449857,0.27032278,680.11,679.54,0.80180073]
[1738279450052,0.27032278,680.11,679.55,0.80180073]
[1738279450254,0.27032278,680.11,679.56,0.80180073]
[1738279450456,0.27032278,680.11,679.57,0.80180073]
[1738279450657,0.27032058,680.1,679.58,0.80180073]
[1738279450856,0.27032058,680.09,679.59,0.80180073]
[1738279451158,0.27032058,680.08,679.6,0.80180073]
[1738279451453,1.09669963,680.14,679.61,0.80182433]
[1738279451652,0.27032568,680.13,679.62,0.80182433]
[1738279451855,0.27032568,680.13,679.63,0.80182433]
[1738279452056,0.27032568,680.13,679.64,0.80182433]
[1738279452252,0.27032568,680.13,679.65,0.80182433]
[1738279452453,0.27032568,680.13,679.66,0.80182433]
[1738279452658,0.27032568,680.13,679.67,0.80182433]
[1738279452855,0.27032568,680.13,679.68,0.80182433]
[1738279453059,0.27032568,680.13,679.69,0.80182433]
[1738279453258,0.27032568,680.13,679.7,0.80182433]
[1738279453455,0.27032568,680.13,679.71,0.80182433]
[1738279453654,0.27032568,680.13,679.72,0.80182433]
[1738279453855,0.27032568,680.13,679.73,0.80182433]
[1738279454055,1.09669963,680.03,679.74,0.80182433]
[1738279454254,1.09669963,680.03,679.75,0.80182433]
[1738279454554,1.09669963,680.03,679.76,0.80182433]
[1738279454758,1.09669963,680.03,679.77,0.80182433]
[1738279454956,1.09669963,680.03,679.78,0.80182433]
[1738279455258,1.09669963,680.03,679.79,0.80182433]
[1738279455458,1.09669963,680.03,679.8,0.80182433]
[1738279455658,1.09669963,680.03,679.81,0.80182433]
[1738279455856,1.09669963,680.03,679.82,0.80182433]
[1738279456060,1.09669963,680.03,679.83,0.80182433]
[1738279456255,1.09669963,680.03,679.84,0.80182433]
[1738279456461,1.09669963,680.03,679.85,0.80182433]
[1738279456762,1.09669963,680.03,679.86,0.80182433]
[1738279456956,1.09669963,680.03,679.87,0.80182433]
[1738279457161,1.09669963,680.03,679.88,0.80182433]
[1738279457359,1.09669963,680.03,679.53,1.143]
[1738279457558,1.09669963,680.03,679.54,0.80193285]
[1738279457864,1.09669963,680.02,679.55,0.80193285]
[1738279458056,1.09669963,680.02,679.53,1.143]
[1738279458057,1.09669963,680.02,679.56,0.80193285]
[1738279458260,1.09669963,680.02,679.57,0.80193285]
[1738279458459,1.09669963,680.02,679.58,0.80193285]
[1738279458664,1.09669963,680.02,679.59,0.80193285]
[1738279458856,1.09669963,680.02,679.6,0.80193285]
[1738279459060,1.09669963,680.02,679.61,0.80193285]
[1738279459257,1.09669963,680.02,679.62,0.80193285]
[1738279459461,1.09669963,680.02,679.63,0.80193285]
[1738279459660,1.09669963,680.02,679.64,0.80193285]
[1738279459861,1.09669963,680.02,679.65,0.80201135]
[1738279460058,1.09669963,680.02,679.66,0.80201135]
[1738279460259,1.09669963,680.02,679.67,0.80201135]
[1738279460459,1.09669963,680.02,679.68,0.80201135]
[1738279460663,1.09669963,680.02,679.69,0.80201135]
[1738279460861,1.09669963,680.02,679.7,0.80201135]
[1738279461065,1.09669963,680.02,679.71,0.80201135]
[1738279461264,1.09669963,680.02,679.72,0.80201135]
[1738279461565,1.09669963,680.02,679.73,0.80201135]
[1738279461761,1.09669963,680.02,679.74,0.80201135]
[1738279461964,1.09669963,680.02,679.75,0.80200165]
[1738279462165,1.09669963,680.02,679.76,0.80200165]
[1738279462367,1.09669963,680.02,679.77,0.80197981]
[1738279462564,1.09669963,680.02,679.78,0.80197981]
[1738279462765,1.09669963,680.02,679.79,0.80197981]
[1738279462963,1.09669963,680.02,679.8,0.80197981]
[1738279463267,1.09669963,680.02,679.81,0.80197981]
[1738279463464,1.09669963,680.02,679.82,0.80197981]
[1738279463663,1.09669963,680.02,679.83,0.80197981]
[1738279463862,1.09669963,680.02,679.84,0.80197981]
[1738279464067,1.09669963,680.02,679.85,0.80197981]
[1738279464363,1.09669963,680.02,679.86,0.80197981]
[1738279464564,1.09669963,680.02,679.83,0.859]
[1738279464765,1.09669963,680.02,679.84,0.80207886]
[1738279464963,1.09669963,680.02,679.85,0.80207886]
[1738279465165,1.09669963,680.02,679.86,0.80207886]
[1738279465469,1.09669963,680.02,679.87,0.80207886]
[1738279465669,1.09669963,680.02,679.83,0.859]
[1738279465867,1.09669963,680.02,679.84,0.80202003]
[1738279466069,1.09669963,680.02,679.85,0.80202003]
[1738279466370,1.09669963,680.02,679.86,0.80202207]
[1738279466564,1.09669963,680.02,679.87,0.80202207]
[1738279466763,1.09669963,680.02,679.83,0.859]
[1738279466968,1.09669963,680.02,679.84,0.8019942]
[1738279467168,1.09669963,680.02,679.85,0.8019942]
[1738279467473,1.09669963,680.02,679.86,0.8019942]
[1738279467662,1.09669963,680.02,679.87,0.8019942]
[1738279467863,1.09669963,680.02,679.83,0.859]
[1738279468169,0.7477992,680.36,679.83,0.859]
[1738279468170,1.09669963,680.09,679.84,0.80201038]
[1738279468362,1.09669963,680.09,679.85,0.80201038]
[1738279468563,1.09669963,680.09,679.86,0.80201038]
[1738279468761,1.09669963,680.09,679.87,0.80201038]
[1738279468966,1.09669963,680.09,679.83,0.859]
[1738279469167,1.09669963,680.09,679.84,0.8019834]
[1738279469365,1.09669963,680.09,679.85,0.8019834]
[1738279469565,1.09669963,680.09,679.86,0.8019834]
[1738279469769,1.09669963,680.09,679.87,0.8019834]
[1738279470069,1.09669963,680.09,679.88,0.8019834]
[1738279470270,1.09669963,680.09,679.83,0.859]
[1738279470470,1.09669963,680.09,679.84,0.80195368]
[1738279470667,1.09669963,680.09,679.85,0.80195368]
[1738279470870,1.09669963,680.09,679.86,0.80195368]
[1738279471065,1.09669963,680.08,679.87,0.80195368]
[1738279471269,1.09669963,680.08,679.88,0.80195368]
[1738279471463,1.09669963,680.08,679.83,0.859]
[1738279471666,1.09669963,680.08,679.84,0.80195244]
[1738279471970,1.09669963,680.08,679.85,0.80195244]
[1738279472172,1.09669963,680.08,679.86,0.80195244]
[1738279472370,1.09669963,680.08,679.87,0.80195244]
[1738279472566,1.09669963,680.08,679.88,0.80195244]
[1738279472765,1.09669963,680.08,679.83,0.859]
[1738279473069,0.27032839,680.07,679.84,0.80207379]
[1738279473367,0.27032839,680.07,679.85,0.80207379]
[1738279473566,0.27032839,680.07,679.83,0.859]
[1738279473567,0.27032839,680.07,679.86,0.80207379]
[1738279473766,0.27032839,680.07,679.87,0.80207379]
[1738279474071,0.27032839,680.07,679.83,0.859]
[1738279474072,0.27032839,680.07,679.88,0.80207379]
[1738279474273,0.27032839,680.07,679.83,0.859]
[1738279474472,0.27032839,680.07,679.84,0.80204802]
[1738279474773,0.27032839,680.07,679.85,0.8020614]
[1738279474970,0.27032839,680.07,679.86,0.8020614]
[1738279475169,0.27032839,680.07,679.87,0.8020614]
[1738279475368,0.27032839,680.07,679.83,0.859]
[1738279475369,0.27032839,680.07,679.88,0.8020679]
[1738279475568,0.27032839,680.07,679.83,0.859]
[1738279475769,1.09669963,680.08,679.84,0.8021201]
[1738279476071,0.27033329,680.07,679.85,0.8021201]
[1738279476266,0.27033329,680.07,679.86,0.8021201]
[1738279476470,0.27033329,680.07,679.83,0.859]
[1738279476670,1.09669963,680.08,679.84,0.80209645]
[1738279476867,1.09669963,680.08,679.85,0.8021102]
[1738279477067,1.09669963,680.08,679.86,0.8021102]
[1738279477371,1.09669963,680.08,679.83,0.859]
[1738279477572,1.09669963,680.08,679.84,0.80208284]
[1738279477774,1.09669963,680.08,679.85,0.80208284]
[1738279477972,1.09669963,679.97,679.86,0.80208284]
[1738279478166,1.09669963,679.97,679.83,0.859]
[1738279478369,1.09669963,679.97,679.84,0.80207449]
[1738279478572,1.09669963,679.97,679.85,0.80207449]
[1738279478766,1.09669963,679.97,679.86,0.80207449]
[1738279478966,1.09669963,679.97,679.87,0.8020074]